{"text_format":"3","workbook":"xlsx","n_sheets":1,"sheets":["项目库汇总表"],"not_rendered":{"defined_names":2},"read":"whole","date_system":"1900"}

{"sheet":"项目库汇总表","index":0,"n_rows":148,"n_cols":18,"rows_kept":148,"merged":[[0,0,0,16],[1,0,2,0],[1,1,2,1],[1,2,2,2],[1,3,2,3],[1,4,2,4],[1,5,1,6],[1,7,2,7],[1,8,1,10],[1,11,2,11],[1,12,2,12],[1,13,2,13],[1,14,2,14],[1,15,2,15],[1,16,2,16],[147,1,147,7]]}
["君山区2021年巩固脱贫攻坚成果和乡村振兴衔接入库项目明细表"]
["序号","项目\n类别","项目名称","建设性质","建设任务","实施地点",null,"补助\n标准","资金规模和筹资方式",null,null,"绩效目标","带贫减贫机制","受益\n对象 ","计划完工时间（年）","责任单位","备注"]
[{"$nulls":5},"乡镇名","村组名",null,"合计\n（万元）","财政资金\n（万元）","其他\n（万元）"]
[1,"产业\n发展","蔬菜基地农产品运输道路硬化","新建","长830米，宽3米，厚0.2米","广兴洲镇","六支渠村五一二组","130元/平方米",35,35,0,"可改善农产品运输及居民安全出行问题，方便生产生活，可覆盖4户14人脱贫户预计增收500元/年。","直接受益","480人",2021,"六支渠村",null,{"$f":"830*3*135","v":336150}]
[2,"产业\n发展","稻虾基地农产品运输道路硬化","新建","长370米，宽3米，厚0.2米","广兴洲镇","六支渠村五一六组","130元/平方米",15.5,15.5,0,"可改善农产品运输及居民安全出行问题，方便生产生活，可以给3户12人脱贫户预计增收400元/年。","直接受益","510人",2021,"六支渠村",null,{"$f":"370*3*135","v":149850}]
[3,"产业\n发展","稻虾套养基地台圳硬化","新建","沟渠硬化650米，宽0.6米，高0.8米","广兴洲镇","团湖村\n五丰一组","230元/平方米",16.5,16.5,0,"可改善、增加水田灌溉面积，提高农业生产效率，可以给3户9人脱贫户预计增收300元/年。","直接受益","172人",2021,"团湖村",null,{"$f":"(0.8*0.1*2+0.8*0.1)*650*621+3.4*650*40","v":185276}]
[4,"产业\n发展","稻虾套养基地台圳硬化","新建","沟渠硬化840米，宽0.6米，高0.8米","广兴洲镇","团湖村\n北洲五组","230元/平方米",20.5,20.5,0,"可改善、增加水田灌溉面积，提高农业生产效率，可以给3户10人脱贫户预计增收400元/年。","直接受益","162人",2021,"团湖村",null,{"$f":"(0.8*0.1*2+0.8*0.1)*840*621+3.4*840*40","v":239433.6}]
[5,"产业\n发展","蔬菜种植基地基础设施建设","新建","沟渠硬化1400米，宽0.5米，高0.6米","广兴洲镇","胜利街社区镇西五组","230元/平方米",26,26,0,"可改善、增加水田灌溉面积，提高农业生产效率可覆盖脱贫户6户19人预计增收400元/年。","直接受益","380人",2021,"胜利街社区",null,{"$f":"(0.6*0.1*2+0.7*0.1)*1400*621+2.6*1400*40","v":310786}]
[6,"产业\n发展","蔬菜基地农产品运输道路硬化","新建","长500米，宽3米，厚0.2米","广兴洲镇","胜利街社区镇西四组","130元/平方米",19.5,19.5,0,"可改善农产品运输及居民安全出行问题，方便生产生活，可覆盖脱贫户6户18人增收350元/年。","直接受益","170人",2021,"胜利街社区",null,{"$f":"500*3*135","v":202500}]
[7,"产业\n发展","蔬菜基地农产品运输道路硬化","新建","长383米，宽3米，厚0.2米","广兴洲镇","洪市村\n五组","130元/平方米",15.5,15.5,0,"可改善农产品运输及居民安全出行问题，方便生产生活，覆盖脱贫户4户13人增收450元/年","直接受益","350人",2021,"洪市村",null,{"$f":"383*3*135","v":155115}]
[8,"产业\n发展","种养殖基地沟渠硬化","新建","沟渠硬化700米，宽0.5米，高0.6米，现浇","广兴洲镇","保庆村\n一组","230元/平方米",17.5,17.5,0,"可改善、增加水田灌溉面积，提高农业生产效率，覆盖脱贫户5户15人预计增收400元/年","直接受益","460人",2021,"保庆村",null,{"$f":"(0.6*0.1*2+0.7*0.1)*700*621+2.6*700*40","v":155393}]
[9,"产业\n发展","稻虾基地沟渠硬化","新建","沟渠硬化700米，宽0.5米，高0.6米，现浇","广兴洲镇","保庆村\n二十一组","230元/平方米",17.5,17.5,0,"可改善、增加水田灌溉面积，提高农业生产效率，\n可覆盖脱贫户3户8人预计增收300元/年。","直接受益","340人",2021,"保庆村",null,{"$f":"(0.6*0.1*2+0.7*0.1)*700*621+2.6*700*40","v":155393}]
[10,"产业\n发展","稻虾基地农产品运输道路硬化","新建","长700米，宽3米，厚0.2米","广兴洲镇","联合村\n联合六组","130元/平方米",27.5,27.5,0,"可改善农产品运输及居民安全出行问题，方便生产生活，\n可覆盖脱贫户3户9人预计增收350元/年。","直接受益","165人",2021,"联合村",null,{"$f":"700*3*135","v":283500}]
[11,"产业\n发展","龙虾基地运输道路硬化","新建","长380米  宽2.8米，厚0.2米","广兴洲镇","殷家铺社区普兴六组","130元/平方米",15,15,0,"预计解决小龙虾养殖基地运输及脱贫人口出行，可覆盖脱贫户5户18人预计增收500元/年。","直接受益","130人",2021,"殷家铺社区",null,{"$f":"380*2.8*135","v":143640}]
[12,"产业\n发展","稻虾基地沟渠硬化","新建","长800米，宽0.6米，高0.8米，现浇","广兴洲镇","殷家铺社区普兴三组、十二组","230元/平方米",18.5,18.5,0,"可改善、增加水田灌溉面积，提高农业生产效率，可覆盖脱贫户3户9人预计增收400元/年。","直接受益","220人",2021,"殷家铺社区",null,{"$f":"(0.8*0.1*2+0.8*0.1)*800*621+3.4*800*40","v":228032}]
[13,"产业\n发展","稻虾基地沟渠硬化","新建","长500米，宽0.6米，高0.8米，现浇","广兴洲镇","殷家铺社区同兴一组","230元/平方米",15,15,0,"可改善、增加水田灌溉面积，提高农业生产效率，可覆盖脱贫户4户12人预计增收300元/年。","直接受益","230人",2021,"殷家铺社区",null,{"$f":"(0.8*0.1*2+0.8*0.1)*500*621+3.4*500*40","v":142520}]
[14,"产业\n发展","蔬菜基地产品运输道路硬化","新建","长500米，宽3米，厚0.2米","广兴洲镇","沿江村\n江南三组\n江陵七组","130元/平方米",19.5,19.5,0,"可改善、增加水田灌溉面积，提高农业生产效率，\n可覆盖脱贫户6户16人预计增收400元/年。","直接受益","320人",2021,"沿江村",null,{"$f":"500*3*135","v":202500}]
[15,"产业\n发展","稻虾基地配套水利设施","新建","新建机埠4个","广兴洲镇","永明村\n三、四、十六组","4万/座",16,16,0,"可改善、增加水田灌溉面积，提高农业生产效率，可覆盖脱贫户4户12人预计增收450元/年。","直接受益","300人",2021,"永明村",null,400000]
[16,"产业\n发展","蔬菜基地农产品运输通道硬化","新建","长1280米，宽3米，厚0.2米","广兴洲镇","黄安村\n四组五组","130元/平方米",45,45,0,"可改善农产品运输及居民安全出行问题，方便生产生活，可覆盖脱贫户5户18人预计增加350元/年。","直接受益","310人",2021,"黄安村",null,{"$f":"1280*3*135","v":518400}]
[17,"产业\n发展","蔬菜基地农产品运输通道硬化","新建","长530米，宽3米，厚0.2米","广兴洲镇","黄安村\n七组八组","130元/平方米",21.5,21.5,0,"可改善农产品运输及居民安全出行问题，方便生产生活，\n可覆盖脱贫户6户19人预计增加300元/年。","直接受益","320人",2021,"黄安村",null,{"$f":"530*3*135","v":214650}]
[18,"产业\n发展","蔬菜基地农产品运输通道硬化","新建","长600米，宽3米，厚0.2米","广兴洲镇","合兴村\n三组","130元/平方米",23.5,23.5,0,"可改善农产品运输及居民安全出行问题，方便生产生活，\n可覆盖脱贫户3户11人预计增收400元/年。","直接受益","280人",2021,"合兴村",null,{"$f":"600*3*135","v":243000}]
[19,"产业\n发展","蔬菜基地农产品运输通道硬化","新建","长686米，宽3米，厚0.2米","广兴洲镇","合兴村\n六组","130元/平方米",26.5,26.5,0,"可改善农产品运输及居民安全出行问题，方便生产生活，\n可覆盖脱贫户4户12人预计增收300元/年。","直接受益","420人",2021,"合兴村",null,{"$f":"686*3*135","v":277830}]
[20,"产业\n发展","蔬菜基地农产品运输通道硬化","新建","长750米，宽2.5米，厚0.2米","广兴洲镇","合兴村\n八组","130元/平方米",28.5,28.5,0,"可改善农产品运输及居民安全出行问题，方便生产生活，\n可覆盖脱贫户3户9人预计增收400元/年。","直接受益","145人",2021,"合兴村",null,{"$f":"750*2.5*135","v":253125}]
[21,"产业\n发展","稻虾基地农产品运输道路硬化","新建","长568米，其中（400米宽3米，168米宽2.3米），厚0.2米。","广兴洲镇","六支渠村五一十组","130元/平方米",21,21,0,"可改善农产品运输及居民安全出行问题，方便生产生活，可以给4户14人脱贫户预计增收500元/年","直接受益","480人",2021,"六支渠村",null,{"$f":"430*3*135","v":174150}]
[22,"产业\n发展","蔬菜种植基地基础设施建设","新建","灌渠拆除新建460米","广兴洲镇","胜利街社区胜利三组","350元/米",15,15,0,"可改善、增加水田灌溉面积，提高农业生产效率，可覆盖脱贫户5户18人预计增加350元/年。","直接受益","210人",2021,"胜利街社区"]
[23,"产业\n发展","机埠新建及台圳新建","新建","机埠1个、台圳260米，DN600涵管30米。","广兴洲镇","永明村十六组","按实际标准",18,18,0,"可改善农产品运输及居民安全出行问题，方便生产生活，可覆盖脱贫户4户12人预计增收450元/年。","直接受益","280人",2021,"永明村"]
[24,"产业\n发展","农产品运输道路拓宽","新建","前210米两侧各拓宽1米，厚0.22米，后500米两侧拓宽0.5米，厚0.22米，砖砌挡土墙700米。","广兴洲镇","合兴村五、六、八组","按实际标准",24,24,0,"可改善农产品运输及居民安全出行问题，方便生产生活，可覆盖脱贫户5户18人预计增收500元/年。","直接受益","286人",2021,"合兴村"]
[25,"产业\n发展","菜基地农产品运输通道硬化","新建","桥面长14米，宽5.5米，配装护栏,路面长50米，宽5.5米。","广兴洲镇","-","按实际标准",18,18,0,"可改善农产品运输及居民安全出行问题，方便生产生活，可覆盖脱贫户6户19人预计增收400元/年。","直接受益","480人",2021,"广兴洲镇"]
[26,"产业\n发展","一村一园产业扶贫基地","新建","100亩基地翻耕、苗木购买，架设电线、围栏。","许市镇","黄金村\n三组","600元/亩",13,13,0,"通过果树种植，集体创收，带动脱贫人口，可覆盖该村脱贫户23人，人均增收1000元以上。","收益分红、务工帮扶、示范辐射","67人",2021,"黄金村"]
[27,"产业\n发展","一村一园产业扶贫基地","新建","150亩基地翻耕、苗木购买","许市镇","铺子嘴村四组","600元/亩",15,15,0,"通过果树种植，集体创收，带动脱贫人口，可覆盖该村脱贫户19人，人均增收800元以上","收益分红、务工帮扶、示范辐射","85人",2021,"铺子嘴村"]
[28,"产业\n发展","一村一园产业扶贫基地","新建","80亩基地翻耕、苗木购买，道路硬化长200米、宽3米","许市镇","崇庆村\n二组","600元/亩",13.5,13.5,0,"通过果树种植，集体创收，带动脱贫人口，\n可覆盖该村脱贫户17人，人均增收500元以上。","收益分红、务工帮扶、示范辐射","102人",2021,"崇庆村"]
[29,"产业\n发展","一村一园产业扶贫基地","新建","60亩基地翻耕、苗木购买，沟渠硬化长134米、宽0.4米、高0.5米","许市镇","许家牌村三组","600元/亩",9.2,9.2,0,"通过果树种植，集体创收，带动脱贫人口，可覆盖该村脱贫户31人，人均增收800元以上。","收益分红、务工帮扶、示范辐射","84人",2021,"许家牌村"]
[30,"产业\n发展","一村一园产业扶贫基地","新建","50亩基地翻耕、苗木购买","许市镇","凉亭村","600元/亩",5,5,0,"通过果树种植，集体创收，带动脱贫人口，可覆盖该村脱贫户26人，人均增收500元以上。","收益分红、务工帮扶、示范辐射","56人",2021,"凉亭村"]
[31,"产业\n发展","一村一园产业扶贫基地","新建","75亩基地翻耕、苗木购买","许市镇","横山岭村","600元/亩",7.5,7.5,0,"通过果树种植，集体创收，带动脱贫人口，可覆盖该村脱贫户20人，人均增收500元以上。","收益分红、务工帮扶、示范辐射","42人",2021,"横山岭村"]
[32,"产业\n发展","一村一园产业扶贫基地","新建","200亩基地翻耕、苗木购买，道路硬化长180米、宽2.8米。","许市镇","柿树岭村二组","600元/亩",19,19,0,"通过果树种植，集体创收，带动脱贫人口，可覆盖该村脱贫户41人，人均增收300元以上。","收益分红、务工帮扶、示范辐射","205人",2021,"柿树岭村"]
[33,"产业\n发展","一村一园产业扶贫基地","新建","65亩基地翻耕、苗木购买","许市镇","洪水港社区三组、七组","600元/亩",7,7,0,"通过果树种植，集体创收，带动脱贫人口，可覆盖该村脱贫户20人，人均增收500元以上。","收益分红、务工帮扶、示范辐射","55人",2021,"洪水港\n社区"]
[34,"产业\n发展","水果基地冷库建设","新建","钢结构冷藏仓库350平方米","许市镇","柿树岭村一组","1700元/平方米",38,38,0,"发展水果产业，提高脱贫户收入水平，巩固脱贫成果，\n可覆盖该村脱贫户41人，人均增收500元/年以上。","收益分红、务工帮扶、冷贮","120人",2021,"柿树岭村"]
[35,"产业\n发展","水果基地冷库制冷机组","新建","库体保温结构及制冷机组","许市镇","柿树岭村一组","20万元/组",22,22,0,"发展水果产业，提高脱贫户收入水平，巩固脱贫成果，可覆盖该村脱贫户41人，人均增收500元/年以上。","收益分红、务工帮扶、冷贮","120人",2021,"柿树岭村"]
[36,"产业\n发展","水稻种植基地配套设施","新建","沟渠硬化800米,宽0.4米x高0.5米(现浇)","许市镇","黄金村\n二组","240元/米",16.5,16.5,0,"可改善、增加水田灌溉面积，提高农业生产效率，可覆盖该村脱贫户13人，人均增收300元/年以上。","直接受益","131人",2021,"黄金村"]
[37,"产业\n发展","水稻种植基地配套设施","新建","沟渠硬化1300米,宽0.4米x高0.5米(现浇)","许市镇","黄金村\n四组","240元/米",26.5,26.5,0,"可改善、增加水田灌溉面积，提高农业生产效率，可覆盖该村脱贫户19人，人均增收300元/年以上。","直接受益","92人",2021,"黄金村"]
[38,"产业\n发展","蔬菜基地农产品运输通道","新建","硬化道路420米，宽2.8米，厚0.2米","许市镇","横山岭村八组","145元/米",16.5,16.5,0,"可改善农产品运输及居民安全出行问题，方便生产生活，可覆盖村脱贫4户12人均增350元/年。","直接受益","78人",2021,"横山岭村"]
[39,"产业\n发展","水稻基地配套水利设施建设","新建","出水沟硬化500米，宽0.4米x高0.5米(现浇)；更换抽水机组；进水沟护坡3米","许市镇","横山岭村八组","230元/米",16,16,0,"可改善、增加水田灌溉面积，提高农业生产效率，可覆盖村脱贫户4户11人均增收400元/年。","直接受益","110人",2021,"横山岭村"]
[40,"产业\n发展","蔬菜基地农产品运输通道","新建","道路硬化500米，宽2.6米，厚0.2米","许市镇","金盆村\n五组","145元/米",18.8,18.8,0,"可改善农产品运输及居民安全出行问题，方便生产生活，可覆盖该村脱贫户7户21人，人均增收300元 /年。","直接受益","201人",2021,"金盆村"]
[41,"产业\n发展","水稻基地配套水利设施建设","新建","新建机埠一座，沟渠硬化500米,宽0.4米x高0.5米(现浇)","许市镇","金盆村\n三组","按实际标准",13,13,0,"可改善、增加水田灌溉面积，提高农业生产效率，可覆盖该村脱贫9户31人，预计增收300元/年 。","直接受益","183人",2021,"金盆村"]
[42,"产业\n发展","水稻产业基地产品运输通道","新建","道路硬化480米，宽2.8米，厚0.2米","许市镇","柿树岭村五组","145元/米",19,19,0,"可改善农产品运输及居民安全出行问题，方便生产生活，可覆盖脱贫户4户13人，预计增收400元以上。","直接受益","100人",2021,"柿树岭村"]
[43,"产业\n发展","水稻基地配套水利设施建设","新建","沟渠硬长720米，宽0.4米x高0.6米(现浇)。\n","许市镇","洪水港\n社区\n荷花二组","240元/米",17.5,17.5,0,"可改善、增加水田灌溉面积，提高农业生产效率，\n可覆盖脱贫户5户17人，预计增收350元/年。","直接受益","90人",2021,"洪水港   社区"]
[44,"产业\n发展","水稻产业基地配套水利设施建设","新建","机埠新建及设备更新;进水渠硬化40米，底宽3米，坡高1.8米;出水沟渠硬化300米（0.5*0.5）(现浇)。","许市镇","铺子嘴村三组","按实际标准",15,15,0,"可改善、增加水田灌溉面积，提高农业生产效率，可覆盖该村脱贫户5户18人，人均增收300元以上。","直接受益","326人",2021,"铺子嘴村"]
[45,"产业\n发展","高新村二组道路硬化","新建","道路硬化长200米，宽3.5米,厚0.2米，护坡，路基修复150米。","许市镇","高新村  二组","130元/米",12,12,0,"可改善农产品运输及居民安全出行问题，方便生产生活，可覆盖该村脱贫户4户17人，人均增收300元以上","直接受益","66人",2021,"高新村"]
[46,"产业\n发展","水稻产业基地产品运输通道","新建","道路硬化650米，宽3米，厚0.2米","许市镇","高新村\n二组","135元/平方米",28,28,0,"可改善农产品运输及居民安全出行问题，方便生产生活，可覆盖脱贫户4户13人，预计增收400元以上。","直接受益","59人",2021,"高新村"]
[47,"产业\n发展","水稻产业基地产品运输通道","新建","道路硬化250米，宽2.6米，厚0.2米","许市镇","许家牌村三组","135元/米",10.5,10.5,0,"可改善农产品运输及居民安全出行问题，方便生产生活，可覆盖村脱贫4户12人均增350元/年。","直接受益","78人",2021,"许家牌村"]
[48,"产业\n发展","水稻产业基地产品运输通道","新建","道路硬化520米，宽2.6米，厚0.2米","许市镇","许家牌村一组","135元/米",19.5,19.5,0,"可改善农产品运输及居民安全出行问题，方便生产生活，\n可覆盖脱贫户4户12人预计增收450元/年。","直接受益","63人",2021,"许家牌村"]
[49,"产业\n发展","水稻产业基地水利配套设施建设","新建","沟渠硬化720米，底宽0.5米，高0.5米，现浇","许市镇","崇庆村\n五组","240元/米",16.2,16.2,0,"可改善、增加水田灌溉面积，提高农业生产效率，\n可覆盖脱贫户4户13人，预计增收400元以上。","直接受益","105人",2021,"崇庆村"]
[50,"产业\n发展","水稻产业基地水利配套设施建设","新建","沟渠硬化600米，底宽0.5米，高0.5米，现浇","许市镇","崇庆村\n五组","240元/米",15,15,0,"可改善、增加水田灌溉面积，提高农业生产效率，\n可覆盖脱贫户6户19人预计增加300元/年。","直接受益","57人",2021,"崇庆村"]
[51,"产业\n发展","水稻产业基地产品运输通道","新建","道路硬化520米，宽2.8m，厚0.2米","许市镇","凉亭村\n三、四组","135元/平方米",20.5,20.5,0,"可改善农产品运输及居民安全出行问题，方便生产生活，可覆盖脱贫户5户15人预计增收400元/年。","直接受益","113人",2021,"凉亭村"]
[52,"产业\n发展","水稻产业基地水利配套设施建设","新建","新建泵房一座，机械设备更新，进水渠砌石护坡及硬化80米，渠道硬化500米","许市镇","铺子嘴村三组","按实际标准",22,22,0,"可改善、增加水田灌溉面积，提高农业生产效率，可覆盖脱贫户4户12人预计增收450元/年","直接受益","100人",2021,"铺子嘴村"]
[53,"产业\n发展","配套水利设施建设","新建","铺设自来水主管延伸，入户管网3800米","许市镇","许市镇","统一标准",35,35,0,"解决脱贫人口用水问题17户52人，方便生产生活，可覆盖脱贫户3户9人预计增收400元/年。","直接受益","105人",2021,"许市镇"]
[54,"产业\n发展","农田灌溉配套水利设施建设","新建","黄金村8个机埠、凉亭村1个机埠、横山岭村1机埠、铺子嘴村1个机埠、镇2个机埠及配套水利设施项目","许市镇","许市镇","统一标准",43.4457,43.4457,0,"解决我镇农田灌溉问题，方便生产生活，可覆盖脱贫户4户12人预计增收450元/年。","直接受益","4个村",2021,"许市镇"]
[55,"产业\n发展","水稻产业基地水利配套设施建设","新建","机埠新建及出水沟硬化260米，宽0.4米，高0.5米(现浇)；进水沟硬化120米，宽0.6米，高0.5米（现浇）","许市镇","黄金村\n七组","按实际标准",18,18,0,"可改善、增加水田灌溉面积，提高农业生产效率，可覆盖脱贫户3户9人预计增收400元/年。","直接受益","150人",2021,"黄金村"]
[56,"产业\n发展","特种鱼养殖基地产品运输通道","新建","硬化道路915米，宽3米，厚0.2米","钱粮湖镇","东北湖\n渔场\n三、四组","130元/平方",37,37,0,"解决我场运输问题和脱贫人口的安全出行方便生产生活，可覆盖脱贫户4户12人预计增收450元/年。","直接受益","170人",2021,"东北湖\n渔场"]
[57,"产业\n发展","蔬菜种植基地农产品运输通道","新建","道路硬化375米，宽3米，厚0.2米","钱粮湖镇","古月湖村二组","178元/平方",16,16,0,"解决蔬菜基地的运输问题和脱贫人口的安全出行，方便生产生活，可覆盖脱贫户6户19人预计增加300元/年。","直接受益","62人",2021,"古月湖村"]
[58,"产业\n发展","蔬菜种植基地农产品运输通道","新建","拆除重建宽6米，长15米桥一座，原桥拆除、桥面硬化、涵闸硬化","钱粮湖镇","古月湖村一组","1333元/平方",12,12,0,"解决一组村民的运输问题和脱贫人口的安全出行，方便生产生活，可覆盖脱贫户5户18人预计增收500元/年。","直接受益","608人",2021,"古月湖村"]
[59,"产业\n发展","蔬菜种植基地农产品运输通道","新建","道路硬化长940米，宽3米，厚0.2米，涵闸3座","钱粮湖镇","两门闸村一、三组","道路130元/平方",40,40,0,"解决龙虾运输问题及所有村民出行安全，方便生产生活，可覆盖脱贫户4户12人预计增收450元/年。","直接受益","470人",2021,"两门闸村"]
[60,"产业\n发展","蔬菜种植基地农产品运输通道","新建","道路硬化400米，宽3米，厚0.2米","钱粮湖镇","马颈河村四组","130元/平方",17,17,0,"解决脱贫人口的出行及蔬菜基地运输问题，可覆盖脱贫户3户9人预计增收400元/年。","直接受益","460人",2021,"马颈河村"]
[61,"产业\n发展","龙虾基地农产品运输通道","新建","道路硬化450米，宽3米，厚0.2米","钱粮湖镇","高桥村\n一组","130元/平方",19,19,0,"解决龙虾基地的运输问题和脱贫人口的安全出行，方便生产生活，可覆盖脱贫户3户11人预计增收400元/年。","直接受益","120人",2021,"高桥村"]
[62,"产业\n发展","龙虾基地农产品运输通道","新建","道路硬化800米，宽3米，厚0.2米","钱粮湖镇","高桥村三组","130元/平方",33,33,0,"解决龙虾基地的运输问题和脱贫人口的安全出行，方便生产生活，\n可覆盖脱贫户4户12人预计增收450元/年。","直接受益","120人",2021,"高桥村"]
[63,"产业\n发展","蔬菜种植基地农产品运输通道","新建","道路硬化450米，宽3米，厚0.2米","钱粮湖镇","牛奶湖村四组","130元/平方",19,19,0,"解决龙虾基地的运输问题和脱贫人口的安全出行，方便生产生活，可覆盖脱贫户5户18人预计增收500元/年","直接受益","232人",2021,"牛奶湖村"]
[64,"产业\n发展","蔬菜种植基地农产品运输通道","新建","道路硬化820米，宽3米、厚0.2米","钱粮湖镇","团洲村\n一、三组","130元/平方",32,32,0,"解决龙虾基地的运输问题和脱贫人口的安全出行，方便生产生活，可覆盖脱贫户4户12人预计增收450元/年。","直接受益","980人",2021,"团洲村"]
[65,"产业\n发展","养殖基地道路硬化","新建","道路硬化500米，宽3米,厚0.2米","钱粮湖镇","乾隆村一、二组","130元/平方",21,21,0,"完善村级道路，改善脱贫户生产生活条件，可覆盖脱贫户3户11人预计增收400元/年","直接受益","108人",2021,"乾隆村"]
[66,"产业\n发展","蔬菜种植基地农产品运输通道","新建","道路硬化560米（三组360米，宽2.5米；四组200米，宽3米）","钱粮湖镇","乾隆村三、四组","130元/平方",21,21,0,"完善村级道路，改善脱贫户生产生活条件，可覆盖4户14人脱贫户预计增收500元/年。","直接受益","120人",2021,"乾隆村"]
[67,"产业\n发展","蔬菜基地农产品运输通道","新建","道路硬化1000米，宽3.5米,厚0.2米","钱粮湖镇","银杯社区四组","130元/平方",49,49,0,"解决种植基地的运输问题和脱贫人口的安全出行，方便生产生活，\n可覆盖脱贫户6户18人预计增加300元/年。","直接受益","130人",2021,"银杯社区"]
[68,"产业\n发展","龙虾基地建设道路硬化","新建","道路硬化1000米，宽3米,厚0.2米","钱粮湖镇","西北湖村四组","130元/平方",41,41,0,"解决龙虾基地的运输问题和脱贫人口的安全出行，方便生产生活，可覆盖脱贫户5户18人预计增收500元/年。","直接受益","100人",2021,"西北湖村"]
[69,"产业\n发展","稻虾养殖基地道路硬化","新建","硬化道路470米，宽3米,厚0.2米","钱粮湖镇","幸福村二组、四组","130元/平方",19,19,0,"解决龙虾基地的运输问题和脱贫人口的安全出行，方便生产生活，可覆盖脱贫户4户12人预计增收450元/年。","直接受益","67人",2021,"幸福村"]
[70,"产业\n发展","稻虾养殖基地道路硬化及桥梁建设","新建","硬化道路550米，宽3米,厚0.2米；新建桥梁一座","钱粮湖镇","幸福村一组","130元/平方",22,22,0,"解决龙虾基地的运输问题和脱贫人口的安全出行，方便生产生活，\n可覆盖脱贫户6户19人预计增加300元/年。","直接受益","38人",2021,"幸福村"]
[71,"产业\n发展","稻虾养殖基地道路硬化","新建","道路硬化550米，宽2.8米,厚0.2米","钱粮湖镇","文家湾二组","130元/平方",20,20,0,"解决农产品的运输和脱贫人口的出行，方便生产生活，\n可覆盖脱贫户3户11人预计增收400元/年。","直接受益","180人",2021,"文家湾村"]
[72,"产业\n发展","稻虾养殖基地道路硬化","新建","道路硬化850米，宽3米,厚0.2米","钱粮湖镇","文家湾三组","130元/平方",34,34,0,"解决龙虾基地的运输问题和脱贫人口的安全出行，方便生产生活，\n可覆盖脱贫户4户12人预计增收450元/年。","直接受益","190人",2021,"文家湾村"]
[73,"产业\n发展","龙虾基地配套水利设施建设","新建","沟渠硬化长700米，宽0.8米，高1.2米，砖砌","钱粮湖镇","六门闸社区三组","120元/平方",30,30,0,"完善村级沟渠建设，调整产业结构，助力脱贫户农业生产条件，\n可覆盖脱贫户4户14人预计增收500元/年。","直接受益","500人",2021,"六门闸\n社区"]
[74,"产业\n发展","种植基地运输通道硬化工程","新建","道路硬化420米，宽2.8米，厚0.2米","钱粮湖镇","分路口社区四组","130元/平方",16.5,16.5,0,"完善社区道路，改善脱贫户生产生活条件，\n可覆盖脱贫户6户19人预计增加300元/年。","直接受益","450人",2021,"分路口社区"]
[75,"产业\n发展","种植基地沟渠硬化工程","新建","沟渠硬化长600米，（二组300米、宽0.5米，高0.6米；三组190米、宽0.7米，高0.8米；五组110米、宽0.7米，高0.8米）","钱粮湖镇","分路口社区烟墩片二、三、五组","120元/平方",19.6,19.6,0,"完善社区沟渠条件，改善脱贫户种植和生产条件\n可覆盖脱贫户5户15人预计增收400元/年","直接受益","380人",2021,"分路口社区"]
[76,"产业\n发展","稻虾养殖基地主渠连接沟渠硬化","新建","沟渠硬化325米，沟底2米，坡面高2.2米，宽2.5米，六角板铺设","钱粮湖镇","三角闸村五组","120元/平方",19,19,0,"解决龙虾基地灌溉畅通问题\n提升脱贫人口30人，人均增收500元以上。","直接受益","450人",2021,"三角闸村"]
[77,"产业\n发展","芥菜基地产业运输通道","新建","道路硬化470米，宽3米","钱粮湖镇","天星洲村一组","130元/平方",18,18,0,"改善农产品运输及居民安全出行问题，方便生产生活，可覆盖脱贫户5户15人预计增收400元/年。","直接受益","400人",2021,"天星洲村"]
[78,"产业\n发展","稻虾养殖基地沟渠硬化","新建","沟渠硬化长800米，面宽2.4米，底宽1米，高1.5米，六方板","钱粮湖镇","釆桑湖渔场三组","120元/平方",27,27,0,"解决脱贫户的居住环境及出行以及蔬菜灌溉问题，可覆盖脱贫户4户12人预计增收450元/年","直接受益","284人",2021,"采桑湖渔场"]
[79,"产业\n发展","产业基地道路硬化","新建","道路硬化1100米，宽3米","钱粮湖镇","托龙山社区三组","130元/平方",46,46,0,"完善村级道路建设，调整产业结构，助力脱贫户农业生产，可覆盖脱贫户9户21人预计增收350/年。","直接受益","850人",2021,"托龙山社区"]
[80,"产业\n发展","稻虾养殖基地沟渠硬化","新建","沟渠硬化280米，宽1.2米，高1.3米","钱粮湖镇","观音村四组","120元/平方",18,18,0,"解决四组龙虾基地出水难问题\n提升脱贫人口30人，人均增收500元以上。","直接受益","130人",2021,"观音村"]
[81,"产业\n发展","水稻种植基地沟渠硬化","新建","新建250机埠及沟渠硬化240米，面宽3米，底宽1.5米，高2.2米，六角板","钱粮湖镇","观音村二组","120元/平方",19.5,19.5,0,"解决低排沟出水难问题，提升脱贫人口20人，人均增收400元以上。","直接受益","300人",2021,"观音村"]
[82,"产业\n发展","蔬菜基地农产品运输通道","新建","道路硬化400米，宽2.5米，厚0.2米","钱粮湖镇","银杯社区四组","130元/平方米",14.5,14.5,0,"解决农产品的运输和脱贫人口的出行，方便生产生活，\n可覆盖村脱贫4户12人均增350元/年。","直接受益","180人",2021,"银杯社区"]
[83,"产业\n发展","稻虾基地农产品运输通道","新建","道路硬化长130米，宽2.8米，厚0.2米","钱粮湖镇","六门闸\n社区二组","130元/平方米",5,5,0,"完善村级道路建设，调整产业结构，助力脱贫户农业生产条件，可覆盖脱贫户3户9人预计增收400元/年","直接受益","280人",2021,"六门闸\n社区"]
[84,"产业\n发展","蔬菜基地农产品运输通道","新建","道路硬化120米，宽3.5米，厚0.2米；修建会车台75米长，2.2米宽","钱粮湖镇","高桥村\n一组","130元/平方米",9,9,0,"解决龙虾基地的运输问题和脱贫人口的安全出行，方便生产生活，可覆盖脱贫户3户10人预计增收400元/年。","直接受益","120人",2021,"高桥村"]
[85,"产业\n发展","稻虾基地农产品运输通道","新建","道路硬化500米，宽2.5米，厚0.2米","钱粮湖镇","银杯社区五组","130元/平方米",16,16,0,"解决农产品的运输和脱贫人口的出行，方便生产生活，可覆盖脱贫户户10人预计增收400元/年","直接受益","98人",2021,"银杯社区"]
[86,"产业\n发展","稻虾养殖基地沟渠硬化","新建","沟渠硬化350米，底宽2.5米，面宽5米，高1.5米，六角板铺设","钱粮湖镇","三角闸村三组","120元/平方",19.2,19.2,0,"解决龙虾基地灌溉畅通问题，\n可覆盖村脱贫4户12人均增350元/年。","直接受益","300人",2021,"三角闸村"]
[87,"产业\n发展","特种鱼养殖基地机埠新建","新建","特种鱼池基地供水新修机埠三个","钱粮湖镇","丰收村\n四组","按实际标准",12,12,0,"解决1200亩鱼池灌溉用水问题，可覆盖脱贫户4户11人预计增收400元/年。","直接受益","135人",2021,"丰收村"]
[88,"产业\n发展","蔬菜基地配套水利设施","新建","硬化516米(六合板方式硬化），面宽2.8米，底宽1.8米，高1.2米","良心堡镇","望君洲村一组","717元/米",25,25,0,"产业扶贫基地基础设施升级，改善生产用水环境，提升脱贫人口收益，\n可覆盖脱贫户5户16人预计增收350元/年。","直接受益","100人",2021,"望君洲村"]
[89,"产业\n发展","稻虾基地配套水利设施","新建","沟渠硬化650米，面宽1.8米,底宽0.6米,高0.8米","良心堡镇","七星湖村二组","300元/米",22,22,0,"产业扶贫基地基础设施升级，改善生产用水环境，提升脱贫人口收益，可覆盖脱贫户3户11人预计增收400元/年","直接受益","80人",2021,"七星湖村"]
[90,"产业\n发展","蔬菜基地农产品运输通道","新建","路硬化总长600米，宽3米；新建桥梁一座（高3.5米，跨度14米）","良心堡镇","黄泥港村一组","336元/米",26,26,0,"产业扶贫基础设施升级，提升脱贫人口收益，可覆盖脱贫户4户13人预计增收450元/年。","直接受益","90人",2021,"黄泥岗村"]
[91,"产业\n发展","油菜花基地设施建设","新建","沟渠硬化长530米，底宽0.6米，高0.8米","良心堡镇","福星村\n二组","300元/米",16,16,0,"产业扶贫基地基础设施升级，提升脱贫人口收益，可覆盖脱贫户3户11人预计增收300元/年","直接受益","80人",2021,"福星村"]
[92,"产业\n发展","吊瓜子种植基地沟渠硬化","新建","沟渠硬化430米，宽0.6米，高0.8米","良心堡镇","悦来河村四组","500元/米",13,13,0,"产业扶贫基地基础设施升级，提升脱贫人口收益，可覆盖脱贫户5户15人预计增收300元/年","直接受益","60人",2021,"悦来河村"]
[93,"产业\n发展","蔬菜基地运输道路设施建设","新建","朱凉洲至胡志辉路段硬化628米，宽3米，厚0.2米","良心堡镇","福星村\n二组","414元/米",25,25,0,"产业扶贫基地基础设施升级，提升脱贫人口收益，可覆盖脱贫户4户13人预计增收350元/年","直接受益","70人",2021,"福星村"]
[94,"产业\n发展","蔬菜基地运输道路设施建设","新建","道路硬化420米，宽2.5米，厚0.2米","良心堡镇","黄泥港村\n二组","311元/米",15,15,0,"产业扶贫基础设施升级，提升脱贫人口收益，可覆盖脱贫户4户11人预计增收300元/年","直接受益","100人",2021,"黄泥岗村"]
[95,"产业\n发展","龙虾基地运输通道硬化","新建","道路硬化780米，宽3米，厚0.2米，会车台2处，32平方米","良心堡镇","七星湖村四组","436元/米",33,33,0,"产业扶贫基地基础设施升级，提升脱贫人口收益，可覆盖脱贫户5户13人预计增收400元/年","直接受益","70人",2021,"七星湖村"]
[96,"产业\n发展","果蔬基地运输通道硬化","新建","道路硬化680米，宽3米，厚0.2米","良心堡镇","悦来河村一、二、四组","411元/米",28.5,28.5,0,"产业扶贫基地基础设施升级，提高运输效率，提升脱贫人口收益，可覆盖脱贫户4户13人预计增收450元/年","直接受益","80人",2021,"悦来河村"]
[97,"产业\n发展","蔬菜基地农产品运输通道","新建","道路硬化700米，宽3米，厚0.2米","良心堡镇","福星村\n三组","420元/米",29.5,29.5,0,"产业扶贫基地升级，提升脱贫人口收益，可覆盖脱贫户4户13人预计增收450元/年","直接受益","150人",2021,"福星村"]
[98,"产业\n发展","檀树村河头片、林园片沟渠硬化","新建","硬化沟渠1120米六合版，面宽2米、底宽0.6米、高宽0.8米","良心堡镇","檀树村\n一、四组","320元/米",33.5,33.5,0,"产业扶贫基地基础设施升级，提高运输效率，提升脱贫人口收益，可覆盖脱贫户3户11人预计增收350元/年","直接受益","210人",2021,"檀树村"]
[99,"产业\n发展","蔬菜基地运输道路设施建设","新建","道路硬化515米，宽3.5米（其中120米宽2.5米）","良心堡镇","维新村\n二、三组","454元/米",23,23,0,"产业扶贫基础设施升级，提升脱贫人口收益，可覆盖脱贫户4户12人预计增收400元/年","直接受益","110人",2021,"维新村"]
[100,"产业\n发展","蔬菜基地运输道路设施建设","新建","林业队中心路硬化580米，宽3米，厚0.2米","良心堡镇","杨蔸湖村六组","379元/米",23,23,0,"产业扶贫基地基础设施升级，提升脱贫人口收益，可覆盖脱贫户5户16人预计增收300元/年","直接受益","140人",2021,"杨蔸湖村"]
[101,"产业\n发展","蔬菜基地运输道路设施建设","新建","道路硬化410米，宽3米，厚0.2米","良心堡镇","团结村\n四组","479元/米",17.5,17.5,0,"产业扶贫基地升级，提升脱贫人口收益，可覆盖脱贫户3户10人预计增收350元/年","直接受益","100人",2021,"团结村"]
[102,"产业\n发展","蔬菜基地运输道路设施建设","新建","道路硬化600米，宽3米，厚0.2米","良心堡镇","黄泥港村三组","130元/米",21,21,0,"产业扶贫基础设施升级，提升脱贫人口收益，可覆盖脱贫户4户13人预计增收400元/年","直接受益","95人",2021,"黄泥岗村"]
[103,"产业\n发展","蔬菜基地基础设施建设","改建","道路硬化310米(分三段),宽3米，厚0.2米","柳林洲\n街道办事处","濠河村\n毛田组","400/平方米",13,13,0,"改善居民点安全出行问题，方便生产生活，可覆盖脱贫户3户9人预计增收400元/年","直接受益","88人",2021,"濠河村"]
[104,"产业\n发展","蔬菜基地基础设施建设","改建","道路硬化长400米,宽3米,厚0.2米","柳林洲\n街道办事处","濠河村\n毛田组","40万/公里",17.5,17.5,0,"解决毛田组脱贫人口30人农作物运输\n可覆盖脱贫户3户10人预计增收450元/年","直接受益","110人",2021,"濠河村"]
[105,"产业\n发展","反嘴组至农科组小龙虾养殖基地基础设施建设\n（东西向）","新建","道路硬化长680m,宽3m,厚0.2米","柳林洲\n街道办事处","反嘴组至农科组","40万/公里",28,28,0,"解决反嘴组及农科组脱贫人口33人农作物运输，可覆盖脱贫户5户17人预计增收350元/年","直接受益","98人",2021,"上反嘴村"]
[106,"产业\n发展","反嘴组至农科组小龙虾养殖基地基础设施建设\n（南北向）","新建","道路硬化长720m,宽3m,厚0.2米","柳林洲\n街道办事处","反嘴组至农科组","40万/公里",30,30,0,"解决反嘴组及农科组脱贫人口33人农作物运输，可覆盖脱贫户3户11人预计增收300元/年","直接受益","100人",2021,"上反嘴村"]
[107,"产业\n发展","龙虾基地沟渠硬化","新建","沟渠硬化260米 宽2米，高1.4米（砖砌）","柳林洲\n街道办事处","长沟子村双港组","400/平方米",16,16,0,"解决小龙虾养殖基地排水、灌溉问题\n可覆盖脱贫户3户10人预计增收300元/年","直接受益","147人",2021,"长沟子村"]
[108,"产业\n发展","龙虾基地基础设施建设","新建","道路硬化650米，宽3米，厚0.2米","柳林洲\n街道办事处","长沟子村五星组","40万/公里",28,28,0,"解决小龙虾养殖基地运输及脱贫人口出行，可覆盖脱贫户4户11人预计增收350元/年","直接受益","255人",2021,"长沟子村"]
[109,"产业\n发展","龙虾基地沟渠硬化","新建","沟渠硬化400米 底宽2米，面宽3米，高1.5米（六合板）","柳林洲\n街道办事处","长沟子村余家组","400/平方米",19.5,19.5,0,"解决小龙虾养殖基地排水、灌溉问题\n可覆盖脱贫户5户16人预计增收400元/年","直接受益","268人",2021,"长沟子村"]
[110,"产业\n发展","腾辉蔬菜专业合作社产业基地沟渠硬化","新建","沟渠硬化长420米，内宽0.6米，高1米（砖砌）","柳林洲\n街道办事处","芦花洲村杨二组","400/平方米",21,21,0,"解决蔬菜基地灌溉和排水问题\n可覆盖脱贫户4户12人预计增收300元/年","直接受益","155人",2021,"芦花洲村"]
[111,"产业\n发展","蔬菜种植基地基础设施建设","新建","蔬菜基地道路，850米，宽2.8米，厚0.2米","柳林洲\n街道办事处","芦花洲村新芦组","40万/公里",33,33,0,"解决蔬菜基运输畅通及村民出行问题\n可覆盖脱贫户4户13人预计增收350元/年","直接受益","140人",2021,"芦花洲村"]
[112,"产业\n发展","蔬菜基地基础设施建设","新建","道路硬化长460米，宽3米，高0.2米","柳林洲\n街道办事处","林角社区林角组","40万/公里",19,19,0,"解决农作物运输畅通及人员出行问题\n可覆盖脱贫户3户10人预计增收300元/年","直接受益","220人",2021,"林角社区"]
[113,"产业\n发展","黄桃种植基地基础设施建设","新建","道路硬化长650米，宽3米，厚0.2米","柳林洲\n街道办事处","望城社区   龙湾组","40万/公里",28,28,0,"解决黄桃基地的运输，受益脱贫人口30人，可覆盖脱贫户5户17人预计增收350元/年","直接受益","300人",2021,"望城社区"]
[114,"产业\n发展","龙虾基地基础设施建设","新建","道路硬化总长260米，（其中160米，宽4米，100米，宽3米），厚0.2米","柳林洲\n街道办事处","二洲子村二洲子组","40万/公里",14,14,0,"解决小龙虾养殖基地运输及脱贫户出行，可覆盖脱贫户4户12人预计增收450元/年","直接受益","230人",2021,"二洲子村"]
[115,"产业\n发展","蔬菜基地基础设施建设\n（李金秀屋后）","新建","道路硬化长220米，宽2.8米，厚0.2米","柳林洲\n街道办事处","二洲子村茅屋岭组","40万/公里",8.8,8.8,0,"解决蔬菜基地运输及脱贫人口出行\n可覆盖脱贫户3户9人预计增收300元/年","直接受益","320人",2021,"二洲子村"]
[116,"产业\n发展","蔬菜基地基础设施建设\n（杨国华屋后）","新建","道路硬化长350米，宽3米，厚0.2米","柳林洲\n街道办事处","二洲子村茅屋岭组","40万/公里",15,15,0,"解决蔬菜养殖基地运输及脱贫人口户出行，可覆盖脱贫户4户14人预计增收400元/年","直接受益","300人",2021,"二洲子村"]
[117,"产业\n发展","蔬菜基地沟渠硬化","新建","沟渠硬化长300米，宽1.2米，高1米（砖砌）","柳林洲\n街道办事处","二洲子村茅屋岭组","400/平方米",16.5,16.5,0,"解决蔬菜基地灌溉和排水问题，可覆盖脱贫户4户13人预计增收450元/年","直接受益","150人",2021,"二洲子村"]
[118,"产业\n发展","蔬菜基地基础设施建设\n（韩勇屋旁）","新建","道路硬化长300米，宽3米，厚0.2米","柳林洲\n街道办事处","二洲子村茅屋岭组","40万/公里",12.5,12.5,0,"解决蔬菜基地运输及脱贫人口出行\n可覆盖脱贫户3户9人预计增收400元/年","直接受益","220人",2021,"二洲子村"]
[119,"产业\n发展","小龙虾养殖基地基础设施建设","新建","道路硬化长670米、宽3米、厚0.2米","柳林洲\n街道办事处","瓦湾村\n瓦湾组至熊市组","40万/公里",28,28,0,"解决小龙虾养殖基地运输及脱贫人口出行，可覆盖脱贫户6户19人预计增收350元/年","直接受益","150人",2021,"瓦湾村"]
[120,"产业\n发展","湖南欣晟果蔬农民专业合作沟渠硬化（东）","新建","沟渠硬化长500米，宽1米，高1米","柳林洲\n街道办事处","挂口村\n黄岸组","400/平方米",23,23,0,"解决基地灌溉和排水问题，可覆盖该村脱贫户23人，年增收400元以上","直接受益","256人",2021,"挂口村"]
[121,"产业\n发展","挂口村黄岸组中心田田间路硬化","新建","道路硬化370米，宽2.5米，厚0.2米","柳林洲\n街道办事处","挂口村","400/平方米",13,13,0,"解决农户种植出行出产问题，可覆盖该脱贫户4户15人，年增收400元以上","直接受益","300人",2021,"挂口村"]
[122,"产业\n发展","湖南欣晟果蔬农民专业合作社沟渠硬化（西）","新建","沟渠硬化长500米，宽1米，高1米","柳林洲\n街道办事处","挂口村\n黄岸组","400/平方米",23,23,0,"解决基地灌溉和排水问题，可覆盖该脱贫户6户23人，年增收400元以上","直接受益","190人",2021,"挂口村"]
[123,"产业\n发展","才鱼养殖基地基础设施建设","新建","道路硬化长800米，宽3米，厚0.2米","柳林洲\n街道办事处","永城村二百弓组","40万元/公里",32,32,0,"解决二百弓组脱贫人口45人养殖才鱼、蔬菜等农作物运输，可覆盖该脱贫户4户15人，预计年增收500元","直接受益","110人",2021,"永城村"]
[124,"产业\n发展","龙虾养殖基地基础设施建设","新建","道路硬化长450米，宽3米，厚0.2米","柳林洲\n街道办事处","永城村二百弓组","40万元/公里",18.5,18.5,0,"解决二百弓组脱贫人口31人养殖才鱼、龙虾等农作物运输，可覆盖该脱贫户3户11人，预计年增收300元","直接受益","180人",2021,"永城村"]
[125,"产业\n发展","蔬菜基地农产品运输通道","新建","道路硬化长120米，宽3米，厚0.2米","柳林洲\n街道办事处","长沟子村官洲组","40万元/公里",5.5,5.5,0,"可改善农产品运输及居民安全出行问题，方便生产生活，可覆盖脱贫户3户12人，人均增收400元","直接受益","226人",2021,"长沟子村"]
[126,"产业\n发展","蔬菜基地沟渠硬化","新建","沟渠硬化长630米，面宽1.2米，底宽0.6米，高0.8米","芦苇总场","二洲管理站瓦湾片","400/平方米",19,19,0,"解决蔬菜基地灌溉和排水问题，可覆盖该村脱贫户5户19人，年增收350元以上","直接受益","156人",2021,"芦苇总场"]
[127,"产业\n发展","种养业农副产品运输道路硬化","新建","道路硬化长450米(李庆云户道路长80米，宽3米;庞盛华户道路长40米，宽2.6米;姚君才户道路长30米，宽3米;赵姣伢户道路长40米，宽2.5米;杨建科户至跃进渠道路长260米，宽2.7米","水产养殖场","黄泥套渔场","400/平方米",18.5,18.5,0,"解决农产品的运输和脱贫人口的出行，方便生产生活，可覆盖该渔场脱贫户5户19人，年增收300元以上","直接受益","217人",2021,"水产养殖场"]
[128,"危房\n改造","危房改造","新建","解决脱贫户和边缘户住房安全问题","全区","——","按实际标准",50,50,0,"保障全区脱贫户、边缘户、低收入人口住房安全","直接受益","全区",2021,"区住建局"]
[129,"老区\n发展","老区发展","新建","完善村级基础设施建设，巩固脱贫攻坚成果，拓展乡村振兴","全区","——","按实际标准",30,30,0,"完善村级基础设施建设，巩固脱贫攻坚成果，拓展乡村振兴。直接帮扶","直接受益","5个镇村",2021,"区民政局"]
[130,"光伏\n扶贫","光伏发电","维护保养","对全区四个村级光伏电站进行维护保养，确保稳定运行。","全区","——","按实际标准",10,10,0,"发展壮大村集体经济，提高村集体发展公益事业和提供公共服务能力。","资产收益分红","4个村",2021,"区乡村振兴局、区发改委"]
[131,"健康\n扶贫","健康扶贫","新建","用于支持脱贫户大病医疗保险、救助等方向","全区","——","按实际标准",30,30,0,"落实脱贫人口重病保障政策，防止因病返贫。","直接受益","脱贫户、边缘户等",2021,"区医保局"]
[132,"教育\n扶贫","“雨露计划”高职、中职、中技学历职业教育","新建","提高教育素质，脱贫学生每学期助学补助","全区","——","1500元/人",50,50,0,"提高脱贫对象综合素质增强就业本领\n直接帮扶","直接帮扶","建档立卡户学生",2021,"区乡村振兴局、区教育局"]
[133,"消费\n扶贫","消费扶贫","新建","用于支持脱贫户农产品产销对接等消费扶贫方向","全区","——","按实际标准",30,30,0,"积极组织开展农产品展销会，三专一平台建设等，扩宽农产品销售渠道。","直接帮扶、委托帮扶等。","建档立卡家庭、边缘户",2021,"区商粮局"]
[134,"安全\n饮水","安全饮水","新建","供水管网延伸以及提升改造等，饮水安全有保障","全区","——","按实际标准",50,50,0,"解决安全用水问题，提升群众生活水平，直接帮扶","直接受益","2000人",2021,"区水利局"]
[135,"产业\n发展","创业致富带头人培训","新建","提高脱贫人口创业发展增收能力，激发内生动力","全区","——","按实际标准",40,40,0,"通过发展地方特色产业稳定增收、持续脱贫，巩固脱贫攻坚成果服务\n直接帮扶","委托帮扶","1000人",2021,"区乡村振兴局"]
[136,"小额\n信贷","小额信贷财政贴息","新建","对脱贫户和边缘户申请贷款利息进行全额补贴。","全区","——","按实际标准",50,50,0,"扶持贷款脱贫户发展产业，达到稳定增收。","直接帮扶","脱贫户、边缘户",2021,"区乡村振兴局"]
[137,"产业\n发展","重点产业扶贫项目","新建","重点产业扶贫项目","全区","——","按实际标准",80,80,0,"产业扶贫基地建设，提升脱贫人口收益。","收益分红、务工奖补、订单收购","1000人",2021,"区农业农村局"]
[138,"产业\n发展","四跟四走产业项目","新建","培植新型农业经营组织，\n发挥其示范、带动、辐射作用。","全区","——","按实际标准",100,100,0,"在全区选择扶持新型农业经营主体2个以上，发挥其示范、引领、带动作用，帮助脱贫户、边缘户通过发展产业增加收入。","资产收益分红、务工奖补、订单收购等","2个村以上",2021,"区农业农村局"]
[139,"产业\n发展","产业奖补","新建","对脱贫户、边缘户发展农业生产以奖代扶。","全区","——","按实际标准",100,100,0,"以奖代补，引导脱贫人口发展特色产业，巩固脱贫成果。\n","直接帮扶","全区种养殖业农户",2021,"区农业局"]
[140,"产业\n发展","产业技术培训","新建 ","用于对全区种养殖业农户进行种养殖业技能培训。","全区","——","按实际标准",30,30,0,"提高脱贫人口劳动技能，让脱贫户掌握一技之长，拓宽增收路径。","直接帮扶","全区种养殖业农户",2021,"区农业农村局"]
[141,"基础\n设施","农村人居环境整治","新建","用于水、电、路、网等农业生产配套设施及垃圾清运、厕所改造等小型公益性生活设施","全区","——","按实际标准",100,100,0,"完善村基础设施建设，健全农村人居环境设施，创建美丽宜居村庄。","直接受益","5镇2场",2021,"区农业农村局"]
[142,"产业\n发展","转产转业帮扶","新建","用于支持脱贫户和边缘易致贫户退捕转型、养殖尾水治理、农药化肥减量受损户家庭帮扶。","全区","——","按实际标准",160,160,0,"对禁捕退捕渔民转产转型进行帮扶，达到稳定增收。","直接帮扶","200人",2021,"区农业农村局、镇（街道）场"]
[143,"返贫致贫监测帮扶","防贫保和特惠保","续保","对全区脱贫户继续购买扶贫特惠保，对全区所有农业人口购买返贫致贫“防贫保”。","全区","——","60元/年.人和30元/年.人",89.1,89.1,0,"对全区脱贫户和边缘户通过扶贫特惠保降低其意外事故风险；对全区农业人口购买防贫保，防范其返贫致贫。","直接帮扶","17.5万人",2021,"乡村振兴局"]
[144,"稳岗就业","公益岗位补助","新建","拓展镇村人居环境整治、乡村治理等公益事业岗位，用于支持易返贫致贫人口和低收入人口就业增收。","全区","——","按实际标准",200,200,0,"结合我区实际，采取积极有效的措施，促进脱贫人口就地就业。","务工帮扶、以工代赈、公益事业","1000人",2021,"镇（街道）场、区就业服务中心"]
[145,"合   计",{"$nulls":6},{"$f":"SUM(I4:I147)","v":{"v":3875.8457,"d":"3875.8"}},{"$f":"SUM(J4:J147)","v":{"v":3875.8457,"d":"3875.8"}},0]